fUST/lending_fUST_20251216
["ID","MTS","AMOUNT","RATE_DAILY","PERIOD"]
[398574417,1765849840586,-500.0,0.00010958,2]
[398574418,1765849840595,-500.0,0.00010958,2]
[398574419,1765849840604,-237.49475889,0.00010958,2]
[398574420,1765849840614,-2530.29,0.00010958,2]
[398574421,1765849840623,-500.0,0.00010958,2]
[398574422,1765849840632,-551.46,0.00010958,2]
[398574423,1765849840642,-500.0,0.00010958,2]
[398574424,1765849840651,-500.0,0.00010958,2]
[398574425,1765849840661,-570.74,0.00010958,2]
[398574426,1765849840670,-500.0,0.00010958,2]
[398574427,1765849840679,-500.0,0.00010958,2]
[398574428,1765849840688,-500.0,0.00010958,2]
[398574429,1765849840697,-1084.94,0.00010958,2]
[398574430,1765849840706,-500.0,0.00010958,2]
[398574431,1765849840715,-500.0,0.00010958,2]
[398574432,1765849840724,-482.65425715,0.00010958,2]
[398574433,1765849840733,-1041.97,0.00010958,2]
[398574434,1765849840742,-985.0,0.00010958,2]
[398574435,1765849840751,-500.0,0.00010958,2]
[398574436,1765849840760,-500.0,0.00010958,2]
[398574437,1765849840769,-617.64025383,0.00010958,2]
[398574438,1765849840781,-1018.35,0.00010958,2]
[398574439,1765849840790,-500.0,0.00010958,2]
[398574440,1765849840799,-554.78,0.00010958,2]
[398574441,1765849840808,-500.0,0.00010958,2]
[398574442,1765849840818,-500.0,0.00010958,2]
[398574443,1765849840829,-500.0,0.00010958,2]
[398574444,1765849840838,-500.0,0.00010958,2]
[398574445,1765849840847,-500.0,0.00010958,2]
[398574446,1765849840857,-500.0,0.00010958,2]
[398574447,1765849840866,-500.0,0.00010958,2]
[398574448,1765849840875,-500.0,0.00010958,2]
[398574449,1765849840884,-2401.57,0.00010958,2]
[398574450,1765849840893,-500.0,0.00010958,2]
[398574451,1765849840902,-500.0,0.00010958,2]
[398574452,1765849840911,-500.0,0.00010958,2]
[398574453,1765849840920,-745.56,0.00010958,2]
[398574454,1765849840929,-500.0,0.00010958,2]
[398574455,1765849840938,-1063.18,0.00010958,2]
[398574456,1765849840947,-500.0,0.00010958,2]
[398574457,1765849840956,-500.0,0.00010958,2]
[398574458,1765849840965,-500.0,0.00010958,2]
[398574459,1765849840974,-500.0,0.00010958,2]
[398574460,1765849840983,-500.0,0.00010958,2]
[398574461,1765849840992,-500.0,0.00010958,2]
[398574462,1765849841001,-475.91399386,0.00010958,2]
[398574463,1765849841010,-500.0,0.00010958,2]
[398574464,1765849841019,-1926.66,0.00010958,2]
[398574465,1765849841028,-1457.19,0.00010958,2]
[398574466,1765849841037,-1261.48,0.00010958,2]
[398574467,1765849841046,-500.0,0.00010958,2]
[398574468,1765849841056,-3113.78,0.00010958,2]
[398574469,1765849841065,-500.0,0.00010958,2]
[398574470,1765849841076,-500.0,0.00010958,2]
[398574471,1765849841084,-868.09,0.00010958,2]
[398574472,1765849841094,-500.0,0.00010958,2]
[398574473,1765849841103,-500.0,0.00010958,2]
[398574474,1765849841112,-1743.27,0.00010958,2]
[398574475,1765849841121,-454.91281594,0.00010958,2]
[398574476,1765849841130,-500.0,0.00010958,2]
[398574477,1765849841139,-549.62,0.00010958,2]
[398574478,1765849841148,-500.0,0.00010958,2]
[398574479,1765849841158,-1423.12,0.00010958,2]
[398574480,1765849841167,-161.09434234,0.00010958,2]
[398574481,1765849841175,-500.0,0.00010958,2]
[398574482,1765849841184,-500.0,0.00010958,2]
[398574483,1765849841194,-500.0,0.00010958,2]
[398574484,1765849841203,-500.0,0.00010958,2]
[398574485,1765849841212,-500.0,0.00010958,2]
[398574486,1765849841222,-1081.59,0.00010958,2]
[398574487,1765849841231,-502.87056052,0.00010958,2]
[398574488,1765849841240,-500.0,0.00010958,2]
[398574489,1765849841249,-500.0,0.00010958,2]
[398574490,1765849841258,-819.02,0.00010958,2]
[398574491,1765849841267,-500.0,0.00010958,2]
[398574492,1765849841277,-500.0,0.00010958,2]
[398574493,1765849841286,-500.0,0.00010958,2]
[398574494,1765849841296,-1101.49,0.00010958,2]
[398574495,1765849841305,-500.0,0.00010958,2]
[398574496,1765849841314,-500.0,0.00010958,2]
[398574497,1765849841324,-500.0,0.00010958,2]
[398574498,1765849841334,-3786.79,0.00010958,2]
[398574499,1765849841343,-726.8,0.00010958,2]
[398574500,1765849841352,-500.0,0.00010958,2]
[398574501,1765849841362,-1129.18,0.00010958,2]
[398574502,1765849841371,-500.0,0.00010958,2]
[398574503,1765849841380,-2861.97,0.00010958,2]
[398574504,1765849841389,-500.0,0.00010958,2]
[398574505,1765849841398,-500.0,0.00010958,2]
[398574506,1765849841407,-500.0,0.00010958,2]
[398574507,1765849841416,-500.0,0.00010958,2]
[398574508,1765849841425,-2072.86,0.00010958,2]
[398574509,1765849841434,-500.0,0.00010958,2]
[398574510,1765849841444,-500.0,0.00010958,2]
[398574511,1765849841453,-974.33,0.00010958,2]
[398574512,1765849841462,-500.0,0.00010958,2]
[398574513,1765849841471,-500.0,0.00010958,2]
[398574514,1765849841480,-500.0,0.00010958,2]
[398574515,1765849841489,-500.0,0.00010958,2]
[398574516,1765849841498,-1033.19,0.00010958,2]
[398574517,1765849841507,-500.0,0.00010958,2]
[398574518,1765849841515,-500.0,0.00010958,2]
[398574519,1765849841524,-500.0,0.00010958,2]
[398574520,1765849841534,-500.0,0.00010958,2]
[398574521,1765849841544,-501.04941281,0.00010958,2]
[398574522,1765849841552,-500.0,0.00010958,2]
[398574523,1765849841562,-1139.24,0.00010958,2]
[398574524,1765849841571,-1047.86,0.00010958,2]
[398574525,1765849841583,-2202.13,0.00010958,2]
[398574526,1765849841592,-500.0,0.00010958,2]
[398574527,1765849841601,-1384.72,0.00010958,2]
[398574528,1765849841611,-500.0,0.00010958,2]
[398574529,1765849841625,-623.34,0.00010958,2]
[398574530,1765849841634,-500.0,0.00010958,2]
[398574531,1765849841643,-919.98,0.00010958,2]
[398574532,1765849841651,-500.0,0.00010958,2]
[398574533,1765849841660,-500.0,0.00010958,2]
[398574534,1765849841669,-500.0,0.00010958,2]
[398574535,1765849841678,-2730.67,0.00010958,2]
[398574536,1765849841687,-500.0,0.00010958,2]
[398574537,1765849841695,-500.0,0.00010958,2]
[398574538,1765849841704,-640.8,0.00010958,2]
[398574539,1765849841713,-500.0,0.00010958,2]
[398574540,1765849841722,-500.0,0.00010958,2]
[398574541,1765849841730,-500.0,0.00010958,2]
[398574542,1765849841739,-500.0,0.00010958,2]
[398574543,1765849841748,-500.0,0.00010958,2]
[398574544,1765849841757,-500.0,0.00010958,2]
[398574545,1765849841766,-500.0,0.00010958,2]
[398574546,1765849841775,-505.61,0.00010958,2]
[398574547,1765849841784,-616.68,0.00010958,2]
[398574548,1765849841793,-4334.64,0.00010958,2]
[398574549,1765849841804,-3226.54,0.00010958,2]
[398574550,1765849841814,-500.0,0.00010958,2]
[398574551,1765849841823,-608.70686863,0.00010958,2]
[398574552,1765849841833,-500.0,0.00010958,2]
[398574553,1765849841843,-500.0,0.00010958,2]
[398574554,1765849841852,-500.0,0.00010958,2]
[398574555,1765849841860,-500.0,0.00010958,2]
[398574556,1765849841870,-500.0,0.00010958,2]
[398574557,1765849841879,-500.0,0.00010958,2]
[398574558,1765849841888,-2947.49,0.00010958,2]
[398574559,1765849841897,-1440.76,0.00010958,2]
[398574560,1765849841906,-1355.91,0.00010958,2]
[398574561,1765849841915,-500.0,0.00010958,2]
[398574562,1765849841924,-500.0,0.00010958,2]
[398574563,1765849841934,-1615.07,0.00010958,2]
[398574564,1765849841943,-500.0,0.00010958,2]
[398574565,1765849841952,-500.0,0.00010958,2]
[398574566,1765849841961,-532.66,0.00010958,2]
[398574567,1765849841970,-500.0,0.00010958,2]
[398574568,1765849841979,-2205.85,0.00010958,2]
[398574569,1765849841988,-500.0,0.00010958,2]
[398574570,1765849841998,-500.0,0.00010958,2]
[398574571,1765849842008,-554.92818315,0.00010958,2]
[398574572,1765849842018,-500.0,0.00010958,2]
[398574573,1765849842027,-810.7,0.00010958,2]
[398574574,1765849842036,-500.0,0.00010958,2]
[398574575,1765849842045,-501.13298718,0.00010958,2]
[398574576,1765849842055,-1582.55,0.00010958,2]
[398574577,1765849842064,-548.57,0.00010958,2]
[398574578,1765849842076,-1984.49,0.00010958,2]
[398574579,1765849842085,-500.0,0.00010958,2]
[398574580,1765849842095,-719.17,0.00010958,2]
[398574581,1765849842104,-500.0,0.00010958,2]
[398574582,1765849842114,-500.0,0.00010958,2]
[398574583,1765849842123,-500.0,0.00010958,2]
[398574584,1765849842132,-1070.59,0.00010958,2]
[398574585,1765849842142,-200.20284698,0.00010958,2]
[398574586,1765849842150,-598.75,0.00010958,2]
[398574587,1765849842159,-500.0,0.00010958,2]
[398574588,1765849842168,-1112.01,0.00010958,2]
[398574589,1765849842178,-947.48,0.00010958,2]
[398574590,1765849842187,-500.0,0.00010958,2]
[398574591,1765849842196,-500.0,0.00010958,2]
[398574592,1765849842205,-1405.86,0.00010958,2]
[398574593,1765849842215,-1952.51,0.00010958,2]
[398574594,1765849842224,-501.60656598,0.00010958,2]
[398574595,1765849842233,-500.0,0.00010958,2]
[398574596,1765849842242,-500.0,0.00010958,2]
[398574597,1765849842251,-1662.45,0.00010958,2]
[398574598,1765849842260,-536.54,0.00010958,2]
[398574599,1765849842269,-500.0,0.00010958,2]
[398574600,1765849842279,-500.0,0.00010958,2]
[398574601,1765849842288,-736.83,0.00010958,2]
[398574602,1765849842298,-844.52,0.00010958,2]
[398574603,1765849842307,-508.40007784,0.00010958,2]
[398574604,1765849842316,-500.0,0.00010958,2]
[398574605,1765849842326,-500.0,0.00010958,2]
[398574606,1765849842335,-577.2,0.00010958,2]
[398574607,1765849842344,-500.0,0.00010958,2]
[398574608,1765849842354,-765.92,0.00010958,2]
[398574609,1765849842363,-743.42,0.00010958,2]
[398574610,1765849842373,-500.0,0.00010958,2]
[398574611,1765849842382,-500.0,0.00010958,2]
[398574612,1765849842391,-506.02,0.00010958,2]
[398574613,1765849842400,-2526.91,0.00010958,2]
[398574614,1765849842409,-500.0,0.00010958,2]
[398574615,1765849842418,-500.0,0.00010958,2]
[398574616,1765849842427,-500.0,0.00010958,2]
[398574617,1765849842436,-500.0,0.00010958,2]
[398574618,1765849842445,-2887.72,0.00010958,2]
[398574619,1765849842454,-1087.82,0.00010958,2]
[398574620,1765849842463,-500.0,0.00010958,2]
[398574621,1765849842472,-769.21,0.00010958,2]
[398574622,1765849842482,-500.0,0.00010958,2]
[398574623,1765849842491,-500.0,0.00010958,2]
[398574624,1765849842500,-500.0,0.00010958,2]
[398574625,1765849842508,-821.52,0.00010958,2]
[398574626,1765849842517,-500.0,0.00010958,2]
[398574627,1765849842526,-500.0,0.00010958,2]
[398574628,1765849842535,-500.0,0.00010958,2]
[398574629,1765849842544,-500.0,0.00010958,2]
[398574630,1765849842554,-2041.11,0.00010958,2]
[398574631,1765849842563,-501.88181762,0.00010958,2]
[398574632,1765849842572,-523.93190289,0.00010958,2]
[398574633,1765849842583,-8333.33,0.00010958,2]
[398574634,1765849842593,-500.0,0.00010958,2]
[398574635,1765849842602,-500.0,0.00010958,2]
[398574636,1765849842611,-500.0,0.00010958,2]
[398574637,1765849842620,-500.0,0.00010958,2]
[398574638,1765849842629,-500.0,0.00010958,2]
[398574639,1765849842638,-688.23,0.00010958,2]
[398574640,1765849842648,-500.0,0.00010958,2]
[398574641,1765849842657,-500.0,0.00010958,2]
[398574642,1765849842666,-500.0,0.00010958,2]
[398574643,1765849842675,-547.01,0.00010958,2]
[398574644,1765849842684,-500.0,0.00010958,2]
[398574645,1765849842694,-1380.46,0.00010958,2]
[398574646,1765849842703,-500.0,0.00010958,2]
[398574647,1765849842712,-500.0,0.00010958,2]
[398574648,1765849842721,-500.0,0.00010958,2]
[398574649,1765849842731,-1022.7,0.00010958,2]
[398574650,1765849842740,-2017.91,0.00010958,2]
[398574651,1765849842750,-1726.19,0.00010958,2]
[398574652,1765849842759,-500.0,0.00010958,2]
[398574653,1765849842768,-500.0,0.00010958,2]
[398574654,1765849842779,-500.0,0.00010958,2]
[398574656,1765849842788,-500.0,0.00010958,2]
[398574658,1765849842801,-500.0,0.00010958,2]
[398574659,1765849842810,-500.0,0.00010958,2]
[398574661,1765849842819,-1844.58,0.00010958,2]
[398574662,1765849842829,-600.46,0.00010958,2]
[398574663,1765849842839,-1081.14,0.00010958,2]
[398574664,1765849842849,-500.0,0.00010958,2]
[398574665,1765849842858,-718.27,0.00010958,2]
[398574666,1765849842868,-1474.23,0.00010958,2]
[398574667,1765849842877,-1149.83,0.00010958,2]
[398574668,1765849842887,-500.0,0.00010958,2]
[398574670,1765849842896,-2625.87,0.00010958,2]
[398574671,1765849842905,-500.0,0.00010958,2]
[398574672,1765849842914,-500.0,0.00010958,2]
[398574673,1765849842923,-500.0,0.00010958,2]
[398574674,1765849842932,-500.0,0.00010958,2]
[398574675,1765849842941,-500.0,0.00010958,2]
[398574676,1765849842950,-500.0,0.00010958,2]
[398574677,1765849842959,-500.0,0.00010958,2]
[398574678,1765849842968,-526.51,0.00010958,2]
[398574679,1765849842978,-931.23,0.00010958,2]
[398574680,1765849842987,-500.0,0.00010958,2]
[398574681,1765849842996,-500.0,0.00010958,2]
[398574682,1765849843005,-1703.57,0.00010958,2]
[398574683,1765849843014,-2085.38,0.00010958,2]
[398574684,1765849843024,-500.0,0.00010958,2]
[398574685,1765849843033,-1605.92,0.00010958,2]
[398574686,1765849843042,-500.0,0.00010958,2]
[398574687,1765849843051,-500.0,0.00010958,2]
[398574688,1765849843060,-1839.91,0.00010958,2]
[398574689,1765849843069,-873.43,0.00010958,2]
[398574690,1765849843079,-500.0,0.00010958,2]
[398574691,1765849843088,-500.0,0.00010958,2]
[398574692,1765849843097,-500.0,0.00010958,2]
[398574693,1765849843106,-1556.22,0.00010958,2]
[398574694,1765849843116,-500.0,0.00010958,2]
[398574695,1765849843125,-3114.36,0.00010958,2]
[398574696,1765849843135,-1392.89,0.00010958,2]
[398574697,1765849843144,-500.0,0.00010958,2]
[398574698,1765849843154,-1000.9,0.00010958,2]
[398574699,1765849843163,-626.81,0.00010958,2]
[398574700,1765849843172,-500.0,0.00010958,2]
[398574701,1765849843181,-500.0,0.00010958,2]
[398574702,1765849843191,-500.0,0.00010958,2]
[398574703,1765849843200,-959.91,0.00010958,2]
[398574704,1765849843209,-4791.51,0.00010958,2]
[398574705,1765849843219,-740.0,0.00010958,2]
[398574706,1765849843229,-500.0,0.00010958,2]
[398574707,1765849843238,-987.24,0.00010958,2]
[398574708,1765849843248,-1736.44,0.00010958,2]
[398574709,1765849843258,-1834.94,0.00010958,2]
[398574710,1765849843267,-620.55,0.00010958,2]
[398574711,1765849843276,-1284.28,0.00010958,2]
[398574712,1765849843293,-500.0,0.00010958,2]
[398574713,1765849843302,-500.0,0.00010958,2]
[398574714,1765849843312,-500.0,0.00010958,2]
[398574715,1765849843322,-671.65,0.00010958,2]
[398574716,1765849843331,-500.0,0.00010958,2]
[398574717,1765849843341,-500.0,0.00010958,2]
[398574718,1765849843351,-927.41,0.00010958,2]
[398574719,1765849843361,-500.0,0.00010958,2]
[398574720,1765849843370,-344.39123259,0.00010958,2]
[398574721,1765849843379,-500.0,0.00010958,2]
[398574722,1765849843389,-1575.68,0.00010958,2]
[398574723,1765849843398,-1284.2,0.00010958,2]
[398574724,1765849843407,-3094.8,0.00010958,2]
[398574725,1765849843416,-500.0,0.00010958,2]
[398574726,1765849843425,-500.0,0.00010958,2]
[398574727,1765849843435,-1107.03,0.00010958,2]
[398574728,1765849843444,-462.69523481,0.00010958,2]
[398574729,1765849843453,-583.920933,0.00010958,2]
[398574730,1765849843462,-583.920933,0.00010958,2]
[398574731,1765849843471,-583.920933,0.00010958,2]
[398574732,1765849843480,-583.920933,0.00010958,2]
[398574733,1765849843490,-583.920933,0.00010958,2]
[398574734,1765849843499,-583.920933,0.00010958,2]
[398574735,1765849843508,-500.0,0.00010958,2]
[398574736,1765849843517,-500.0,0.00010958,2]
[398574737,1765849843527,-642.9,0.00010958,2]
[398574738,1765849843536,-583.920933,0.00010958,2]
[398574739,1765849843720,-583.920933,0.00010958,2]
[398574740,1765849843730,-583.920933,0.00010958,2]
[398574741,1765849843739,-583.920933,0.00010958,2]
[398574742,1765849843749,-500.0,0.00010958,2]
[398574743,1765849843759,-583.920933,0.00010958,2]
[398574744,1765849843768,-500.0,0.00010958,2]
[398574745,1765849843778,-500.0,0.00010958,2]
[398574746,1765849843787,-583.920933,0.00010958,2]
[398574747,1765849843797,-583.920933,0.00010958,2]
[398574748,1765849843810,-583.920933,0.00010958,2]
[398574749,1765849843819,-583.920933,0.00010958,2]
[398574750,1765849843829,-500.0,0.00010958,2]
[398574751,1765849843838,-583.920933,0.00010958,2]
[398574752,1765849843848,-500.0,0.00010958,2]
[398574753,1765849843857,-583.920933,0.00010958,2]
[398574754,1765849843866,-583.920933,0.00010958,2]
[398574755,1765849843875,-583.920933,0.00010958,2]
[398574756,1765849843885,-583.920927,0.00010958,2]
[398574757,1765849843894,-500.0,0.00010958,2]
[398574758,1765849843904,-500.0,0.00010958,2]
[398574759,1765849843913,-4529.22,0.00010958,2]
[398574760,1765849843922,-500.0,0.00010958,2]
[398574761,1765849843931,-1700.93,0.00010958,2]
[398574762,1765849843940,-2278.95,0.00010958,2]
[398574763,1765849843949,-601.43,0.00010958,2]
[398574764,1765849843959,-500.0,0.00010958,2]
[398574765,1765849843967,-500.0,0.00010958,2]
[398574766,1765849843976,-500.0,0.00010958,2]
[398574767,1765849843986,-500.0,0.00010958,2]
[398574768,1765849843996,-500.0,0.00010958,2]
[398574769,1765849844004,-500.0,0.00010958,2]
[398574770,1765849844013,-1672.73,0.00010958,2]
[398574771,1765849844022,-500.0,0.00010958,2]
[398574772,1765849844031,-500.0,0.00010958,2]
[398574773,1765849844040,-603.71,0.00010958,2]
[398574774,1765849844049,-500.0,0.00010958,2]
[398574775,1765849844058,-8316.53,0.00010958,2]
[398574776,1765849844069,-500.0,0.00010958,2]
[398574777,1765849844078,-500.0,0.00010958,2]
[398574778,1765849844087,-1298.6,0.00010958,2]
[398574779,1765849844096,-538.17,0.00010958,2]
[398574780,1765849844105,-508.43489727,0.00010958,2]
[398574781,1765849844114,-500.0,0.00010958,2]
[398574782,1765849844124,-500.0,0.00010958,2]
[398574783,1765849844133,-500.0,0.00010958,2]
[398574784,1765849844142,-500.0,0.00010958,2]
[398574785,1765849844151,-1094.34,0.00010958,2]
[398574786,1765849844160,-1608.91,0.00010958,2]
[398574787,1765849844170,-617.61,0.00010958,2]
[398574788,1765849844179,-2121.5,0.00010958,2]
[398574789,1765849844189,-2821.85,0.00010958,2]
[398574790,1765849844198,-629.12781124,0.00010958,2]
[398574791,1765849844208,-1942.7,0.00010958,2]
[398574792,1765849844217,-245.812588,0.00010958,2]
[398574793,1765849844227,-500.0,0.00010958,2]
[398574794,1765849844236,-1442.55,0.00010958,2]
[398574795,1765849844245,-988.98,0.00010958,2]
[398574796,1765849844254,-500.0,0.00010958,2]
[398574797,1765849844263,-3789.1,0.00010958,2]
[398574798,1765849844272,-500.0,0.00010958,2]
[398574799,1765849844282,-501.555928,0.00010958,2]
[398574800,1765849844291,-500.0,0.00010958,2]
[398574801,1765849844300,-500.0,0.00010958,2]
[398574802,1765849844312,-2901.9,0.00010958,2]
[398574803,1765849844322,-2245.55,0.00010958,2]
[398574804,1765849844333,-500.0,0.00010958,2]
[398574805,1765849844343,-500.0,0.00010958,2]
[398574806,1765849844353,-6441.52,0.00010958,2]
[398574807,1765849844363,-500.0,0.00010958,2]
[398574808,1765849844371,-169.966045,0.00010958,2]
[398574809,1765849844381,-500.0,0.00010958,2]
[398574810,1765849844390,-4253.02,0.00010958,2]
[398574811,1765849844399,-500.0,0.00010958,2]
[398574812,1765849844408,-500.0,0.00010958,2]
[398574813,1765849844418,-698.26,0.00010958,2]
[398574814,1765849844427,-1589.97,0.00010958,2]
[398574815,1765849844436,-5950.38,0.00010958,2]
[398574816,1765849844446,-1479.2,0.00010958,2]
[398574817,1765849844455,-500.0,0.00010958,2]
[398574818,1765849844464,-2191.15,0.00010958,2]
[398574819,1765849844473,-500.0,0.00010958,2]
[398574820,1765849844482,-500.0,0.00010958,2]
[398574821,1765849844491,-1879.49,0.00010958,2]
[398574822,1765849844501,-500.0,0.00010958,2]
[398574823,1765849844510,-500.0,0.00010958,2]
[398574824,1765849844519,-2032.413163,0.00010958,2]
[398574825,1765849844528,-500.0,0.00010958,2]
[398574826,1765849844538,-924.26,0.00010958,2]
[398574827,1765849844546,-501.7577472,0.00010958,2]
[398574828,1765849844555,-500.0,0.00010958,2]
[398574829,1765849844564,-2270.02,0.00010958,2]
[398574830,1765849844573,-381.58662484,0.00010958,2]
[398574831,1765849844583,-500.68276873,0.00010958,2]
[398574832,1765849844591,-500.0,0.00010958,2]
[398574833,1765849844600,-698.77,0.00010958,2]
[398574834,1765849844609,-500.0,0.00010958,2]
[398574835,1765849844618,-500.0,0.00010958,2]
[398574836,1765849844627,-10416.91,0.00010958,2]
[398574837,1765849844637,-1308.02,0.00010958,2]
[398574838,1765849844646,-2084.56,0.00010958,2]
[398574839,1765849844655,-1300.24,0.00010958,2]
[398574840,1765849844664,-2239.95,0.00010958,2]
[398574841,1765849844673,-2737.25,0.00010958,2]
[398574842,1765849844682,-1084.34,0.00010958,2]
[398574843,1765849844691,-2303.84,0.00010958,2]
[398574844,1765849844700,-500.0,0.00010958,2]
[398574845,1765849844709,-500.0,0.00010958,2]
[398574846,1765849844718,-505.69172724,0.00010958,2]
[398574847,1765849844727,-500.0,0.00010958,2]
[398574848,1765849844736,-466.53157853,0.00010958,2]
[398574849,1765849844746,-750.14,0.00010958,2]
[398574850,1765849844755,-500.0,0.00010958,2]
[398574851,1765849844765,-500.0,0.00010958,2]
[398574852,1765849844774,-500.0,0.00010958,2]
[398574853,1765849844783,-500.0,0.00010958,2]
[398574854,1765849844793,-500.0,0.00010958,2]
[398574855,1765849844804,-1450.0,0.00010958,2]
[398574856,1765849844818,-3082.37,0.00010958,2]
[398574857,1765849844827,-894.67,0.00010958,2]
[398574858,1765849844837,-500.0,0.00010958,2]
[398574859,1765849844847,-1432.84,0.00010958,2]
[398574860,1765849844855,-500.0,0.00010958,2]
[398574861,1765849844865,-500.0,0.00010958,2]
[398574862,1765849844874,-1090.22,0.00010958,2]
[398574863,1765849844887,-280.626214,0.00010958,2]
[398574864,1765849844897,-500.0,0.00010958,2]
[398574865,1765849844907,-280.626214,0.00010958,2]
[398574866,1765849844916,-500.0,0.00010958,2]
[398574867,1765849844925,-280.626214,0.00010958,2]
[398574868,1765849844934,-1647.64,0.00010958,2]
[398574869,1765849844943,-280.626214,0.00010958,2]
[398574870,1765849844953,-280.626214,0.00010958,2]
[398574871,1765849844962,-500.0,0.00010958,2]
[398574872,1765849844972,-280.626214,0.00010958,2]
[398574873,1765849844981,-280.626214,0.00010958,2]
[398574874,1765849844990,-280.626214,0.00010958,2]
[398574875,1765849844999,-280.626214,0.00010958,2]
[398574876,1765849845009,-500.0,0.00010958,2]
[398574877,1765849845018,-500.0,0.00010958,2]
[398574878,1765849845027,-24961.1,0.00010958,2]
[398574879,1765849845036,-280.626214,0.00010958,2]
[398574880,1765849845045,-500.0,0.00010958,2]
[398574881,1765849845054,-280.626214,0.00010958,2]
[398574882,1765849845063,-1681.51,0.00010958,2]
[398574883,1765849845072,-280.626214,0.00010958,2]
[398574884,1765849845082,-280.626214,0.00010958,2]
[398574885,1765849845091,-280.626214,0.00010958,2]
[398574886,1765849845101,-745.49,0.00010958,2]
[398574887,1765849845110,-10951.5,0.00010958,2]
[398574888,1765849845119,-280.626214,0.00010958,2]
[398574889,1765849845129,-280.626214,0.00010958,2]
[398574890,1765849845138,-280.626214,0.00010958,2]
[398574891,1765849845147,-280.626214,0.00010958,2]
[398574892,1765849845157,-500.0,0.00010958,2]
[398574893,1765849845167,-500.0,0.00010958,2]
[398574894,1765849845176,-280.626214,0.00010958,2]
[398574895,1765849845185,-610.04321775,0.00010958,2]
[398574896,1765849845195,-280.626221,0.00010958,2]
[398574897,1765849845204,-500.0,0.00010958,2]
[398574898,1765849845215,-500.0,0.00010958,2]
[398574899,1765849845224,-961.34,0.00010958,2]
[398574900,1765849845233,-500.0,0.00010958,2]
[398574901,1765849845243,-2367.23,0.00010958,2]
[398574902,1765849845252,-500.0,0.00010958,2]
[398574903,1765849845262,-2623.59,0.00010958,2]
[398574904,1765849845271,-500.0,0.00010958,2]
[398574905,1765849845281,-500.0,0.00010958,2]
[398574906,1765849845291,-2953.46,0.00010958,2]
[398574907,1765849845300,-5863.32,0.00010958,2]
[398574908,1765849845309,-500.0,0.00010958,2]
[398574909,1765849845319,-500.0,0.00010958,2]
[398574910,1765849845328,-500.0,0.00010958,2]
[398574911,1765849845338,-500.0,0.00010958,2]
[398574912,1765849845347,-500.0,0.00010958,2]
[398574913,1765849845356,-500.0,0.00010958,2]
[398574914,1765849845365,-500.0,0.00010958,2]
[398574915,1765849845374,-500.0,0.00010958,2]
[398574916,1765849845383,-500.0,0.00010958,2]
[398574917,1765849845392,-574.63,0.00010958,2]
[398574918,1765849845404,-500.0,0.00010958,2]
[398574919,1765849845412,-500.0,0.00010958,2]
[398574920,1765849845423,-500.0,0.00010958,2]